Cogmind - Beta 13 *** ADVENTURER MODE // 2024.04.27 @ 16:15:44 Player: MiNathan Result: Self-destructed Performance ------------- Evolutions (2) 1000 Regions Visited (5) 1000 Robots Destroyed (6) 30 Value Destroyed (166) 166 Prototype IDs (0) 0 Alien Tech Used (0) 0 Bonus (0) 0 TOTAL SCORE: 2196 Bonus ------- None Cogmind --------- Core Integrity 192/550 Matter 490/500 Energy 265/265 System Corruption 0% Temperature Cool (9) Movement Core (200) Ox3 Location -8/Materials Parts ------- > --- POWER (2) -------- Improved Ion Engine > --- PROPULSION (2) --- (None) > --- UTILITY (4) ------ High-capacity Matter Pod > --- WEAPON (3) ------- (None) > --- INVENTORY (5) ---- (None) Peak State ------------ > --- POWER ------------ Ion Engine > --- PROPULSION ------- Aluminum Leg Aluminum Leg > --- UTILITY ---------- Humpback High-capacity Matter Pod Advanced Weight Redist. System > --- WEAPON ----------- Light Assault Rifle Light Assault Rifle > --- INVENTORY -------- (None) [Rating: 11] Favorites ----------- Power Ion Engine Engine Ion Engine Propulsion Light Treads Treads Light Treads Leg Aluminum Leg Utility Humpback Device Advanced Weight Redist. System Storage Humpback Processor Targeting Computer Weapon Grenade Launcher Energy Gun EM Pulse Gun Ballistic Gun Assault Rifle Launcher Grenade Launcher Build | -11 -10 -10 -10 -9 -8 ------- Run | Yrd Mat Min Exi Min Mat Slots Evolved 4 | . . . . . 4 Power 1 | . . . . . 1 Propulsion . | . . . . . . Utility 2 | . . . . . 2 Weapon 1 | . . . . . 1 Parts Attached 25 | 5 5 . 5 6 4 Power 3 | 1 . . . 1 1 Engine 3 | 1 . . . 1 1 Core . | . . . . . . Reactor . | . . . . . . Propulsion 4 | 2 . . . 2 . Treads 2 | 2 . . . . . Leg 2 | . . . . 2 . Wheel . | . . . . . . Hover . | . . . . . . Flight . | . . . . . . Utility 10 | . 2 . 5 . 3 Device 1 | . . . . . 1 Storage 8 | . 1 . 5 . 2 Processor 1 | . 1 . . . . Hackware . | . . . . . . Protection . | . . . . . . Artifact . | . . . . . . Weapon 8 | 2 3 . . 3 . Energy Gun 3 | 2 1 . . . . Energy Cannon . | . . . . . . Ballistic Gun 4 | . 1 . . 3 . Ballistic Cannon . | . . . . . . Launcher 1 | . 1 . . . . Special Weapon . | . . . . . . Impact Weapon . | . . . . . . Slashing Weapon . | . . . . . . Piercing Weapon . | . . . . . . Special Melee Weapon . | . . . . . . Unidentified Prototypes . | . . . . . . Parts Lost 8 | . . . . 1 7 Power 1 | . . . . . 1 Propulsion 2 | . . . . . 2 Utility 2 | . . . . . 2 Weapon 3 | . . . . 1 2 Highest Loss Streak 4 | . . . . 1 4 To Critical Strikes . | . . . . . . Average Slot Usage (%) 84 | . 81 100 87 93 62 Engine 12 | . 14 14 14 14 7 Treads 21 | . 28 28 28 8 . Leg 4 | . . . . 19 14 Storage 16 | . 8 14 14 28 23 Processor 2 | . 1 14 2 . . Ballistic Gun 12 | . 1 14 14 9 15 Launcher 11 | . 13 14 14 12 . Naked Turns . | . . . . . . Heaviest Build 215 | 9 13 13 210 18 215 Greatest Support 40 | 40 40 40 40 40 29 Greatest Overweight (x) 17 | 1 . . 5 . 17 Average Overweight (x) 1 | . . . 2 . 9 Largest Inventory Capacity 35 | 5 5 5 35 5 35 Average Capacity 24 | 5 5 5 29 5 33 Most Carried 4 | 3 2 . 3 4 3 Average Carried . | 1 . . . 2 . Final Capacity 5 | 5 5 5 5 5 5 Final Carried 2 | 1 . . 2 2 . Class Distribution -------------------- 65% | Hauler-Mutant 34% | Mutant Dominant Class ---------------- Mutant | -10/Materials Mutant | -10/Mines Hauler-Mutant | -10/Exiles Mutant | -9/Mines Hauler-Mutant | -8/Materials Resources | -11 -10 -10 -10 -9 -8 ----------- Run | Yrd Mat Min Exi Min Mat Matter Collected 785 | 194 . . 200 336 55 Remotely . | . . . . . . Salvage Created 184 | . . . . 69 115 Parts 13 | . . . . 6 7 Haulers Intercepted . | . . . . . . Recyclers Shooed . | . . . . . . Parts Field Recycled . | . . . . . . Retrieved Matter . | . . . . . . Parts Self-Destructed . | . . . . . . Prevented . | . . . . . . Kills | -11 -10 -10 -10 -9 -8 ------- Run | Yrd Mat Min Exi Min Mat Combat Hostiles Destroyed 12 | . . . . 10 2 Guns 4 | . . . . 2 2 AOE 8 | . . . . 8 . Classes Destroyed 4 | . . . . 3 1 Swarmer 3 | . . . . 3 . Grunt 2 | . . . . 1 1 Sentry 1 | . . . . . 1 Assembled 6 | . . . . 6 . Best Kill Streak 4 | . . . . 4 1 Combat Bots Only 4 | . . . . 4 1 Max Kills in Single Turn 2 | . . . . 2 1 Gunslinging . | . . . . . . Exploded 2 | . . . . 2 . Melee . | . . . . . . Uniques/NPCs Destroyed . | . . . . . . Combat | -11 -10 -10 -10 -9 -8 -------- Run | Yrd Mat Min Exi Min Mat Hostile Shots Fired 172 | . . . . 41 131 Missed 43 | . . . . 8 35 Damage Taken 1677 | . 52 . . 466 1159 Core 429 | . . . . 71 358 Absorbed by Shields . | . . . . . . Ignored by Resistances 489 | . 14 . . 133 342 Core Remaining (%) 85 | 100 . . . 71 . Volleys Fired 49 | . 1 . . 27 21 Largest 2 | . 1 . . 2 2 Hottest 50 | . 40 . . 50 40 Shots Fired 64 | . 1 . . 32 31 Gun 55 | . 1 . . 23 31 Cannon . | . . . . . . Launcher 9 | . . . . 9 . Special . | . . . . . . Kinetic 54 | . . . . 23 31 Thermal . | . . . . . . Explosive 9 | . . . . 9 . Electromagnetic 1 | . 1 . . . . Robot Hit Streak 14 | . . . . 6 14 Robot Miss Streak 2 | . 1 . . 2 2 Penetration Max . | . . . . . . Secondary Targets . | . . . . . . Shots Hit Robots 39 | . . . . 15 24 Core Hits 29 | . . . . 19 10 Critical Kills . | . . . . . . Critical Parts Destroyed . | . . . . . . Critical Strikes . | . . . . . . Melee Attacks . | . . . . . . Impact . | . . . . . . Slashing . | . . . . . . Piercing . | . . . . . . Sneak Attacks . | . . . . . . Combat Hostiles . | . . . . . . Follow-up Attacks . | . . . . . . Damage Inflicted 712 | . . . . 512 200 Guns 356 | . . . . 156 200 Cannons . | . . . . . . Explosions 356 | . . . . 356 . Melee . | . . . . . . Ramming . | . . . . . . Kinetic 356 | . . . . 156 200 Thermal . | . . . . . . Explosive 356 | . . . . 356 . Electromagnetic . | . . . . . . Impact . | . . . . . . Slashing . | . . . . . . Piercing . | . . . . . . Highest Corruption . | . . . . . . Average Corruption . | . . . . . . Corruption Purged . | . . . . . . Corruption Blocked . | . . . . . . Overload Shots . | . . . . . . Overflow Damage . | . . . . . . Projectiles . | . . . . . . Explosions . | . . . . . . Melee . | . . . . . . Knockbacks . | . . . . . . Impact . | . . . . . . Kinetic . | . . . . . . Secondary . | . . . . . . Self-Inflicted Damage 73 | . . . . 73 . Shots 3 | . . . . 3 . Rammed 1 | . . . . . 1 Targets Rammed 1 | . . . . . 1 Kicked . | . . . . . . Crushed . | . . . . . . Highest Temperature 40 | . . . . 40 7 Average Temperature 13 | . . . . 19 4 Received Heat Transfer 1142 | . . . . 188 954 Siege Activations . | . . . . . . Robots Corrupted . | . . . . . . Combat Hostiles . | . . . . . . Parts Fried . | . . . . . . Impact Corruptions . | . . . . . . Robots Melted . | . . . . . . Combat Hostiles . | . . . . . . Parts Melted . | . . . . . . Heat Transferred . | . . . . . . Parts Sabotaged . | . . . . . . Parts Stolen . | . . . . . . Parts Stripped . | . . . . . . Power Chain Reactions . | . . . . . . Alert | -11 -10 -10 -10 -9 -8 ------- Run | Yrd Mat Min Exi Min Mat Peak Influence 135 | . . . . 135 105 Initial 44 | . . . . . 44 Average 42 | . . . . 52 68 Maximum Alert Level . | . . . . . . Low Security (%) 100 | 100 100 100 . 100 100 Level 1 . | . . . . . . Level 2 . | . . . . . . Level 3 . | . . . . . . Level 4 . | . . . . . . Level 5 . | . . . . . . High Security . | . . . . . . Max Security . | . . . . . . Squads Dispatched 2 | . 1 . . . 1 Investigation 2 | . 1 . . . 1 Extermination . | . . . . . . Reinforcement . | . . . . . . Assault . | . . . . . . Garrison . | . . . . . . Intercept . | . . . . . . Searches Triggered . | . . . . . . Construction Impeded . | . . . . . . Haulers Reinforced . | . . . . . . Active Scanning Responses . | . . . . . . Cargo Convoy Interrupts . | . . . . . . Stealth | -11 -10 -10 -10 -9 -8 --------- Run | Yrd Mat Min Exi Min Mat Distress Signals 1 | . . . . . 1 Communications Jammed . | . . . . . . Distress Signals . | . . . . . . Times Spotted 20 | . 2 . . 13 5 Peak Tracking Total 4 | . 2 . . 4 3 Tactical Retreats 1 | . . . . . 1 Traps | -11 -10 -10 -10 -9 -8 ------- Run | Yrd Mat Min Exi Min Mat Traps Triggered 2 | . 2 . . . . Indirectly . | . . . . . . Trap Hack Attempts . | . . . . . . Triggered . | . . . . . . Disarmed . | . . . . . . Reprogrammed . | . . . . . . Reused . | . . . . . . Traps Extracted . | . . . . . . Installed . | . . . . . . Triggered . | . . . . . . Machines | -11 -10 -10 -10 -9 -8 ---------- Run | Yrd Mat Min Exi Min Mat Machines Disabled 1 | . . . . 1 . Max in Single Turn 1 | . . . . 1 . Machines Repaired . | . . . . . . Machines Dismantled . | . . . . . . Machines Sabotaged . | . . . . . . Overloaded Fab Kills . | . . . . . . Hacking | -11 -10 -10 -10 -9 -8 --------- Run | Yrd Mat Min Exi Min Mat Machines Accessed 2 | . . . 1 . 1 Terminals . | . . . . . . Fabricators . | . . . . . . Repair Stations . | . . . . . . Recycling Units . | . . . . . . Scanalyzers 1 | . . . . . 1 Garrison Access . | . . . . . . Total Hacks 27 | . . . 23 . 4 Successful 27 | . . . 23 . 4 Failed . | . . . . . . Catastrophic . | . . . . . . Database Lockouts . | . . . . . . Manual . | . . . . . . Terminals . | . . . . . . Fabricators . | . . . . . . Repair Stations . | . . . . . . Recycling Units . | . . . . . . Scanalyzers 4 | . . . . . 4 Garrison Access . | . . . . . . Terminal Hacks 23 | . . . 23 . . Record 23 | . . . 23 . . Fabricator Hacks . | . . . . . . Repair Station Hacks . | . . . . . . Recycling Unit Hacks . | . . . . . . Scanalyzer 4 | . . . . . 4 Insert Component 2 | . . . . . 2 Analyze 2 | . . . . . 2 Garrison Access Hacks . | . . . . . . Unauthorized Hacks . | . . . . . . Terminals . | . . . . . . Fabricators . | . . . . . . Repair Stations . | . . . . . . Recycling Units . | . . . . . . Scanalyzers . | . . . . . . Garrison Access . | . . . . . . Data Cores Recovered . | . . . . . . Used . | . . . . . . Hacking Detections 1 | . . . . . 1 Full Trace Events 1 | . . . . . 1 Feedback Events . | . . . . . . Feedback Blocked . | . . . . . . Robot Schematics Acquired . | . . . . . . Robots Built . | . . . . . . Authchips . | . . . . . . Time . | . . . . . . Total Robot Build Rating . | . . . . . . Part Schematics Acquired 2 | . . . . . 2 Parts Built . | . . . . . . Authchips . | . . . . . . Time . | . . . . . . Total Part Build Rating . | . . . . . . Parts Repaired . | . . . . . . Time . | . . . . . . Parts Recycled . | . . . . . . Recycled Matter . | . . . . . . Retrieved Matter . | . . . . . . Retrieved Components . | . . . . . . Parts Scanalyzed 2 | . . . . . 2 Part Schematics Acquired 2 | . . . . . 2 Parts Damaged . | . . . . . . Bothacking | -11 -10 -10 -10 -9 -8 ------------ Run | Yrd Mat Min Exi Min Mat Used RIF Installer . | . . . . . . Robots Hacked . | . . . . . . Non-combat . | . . . . . . Combat . | . . . . . . Robot Hacks Applied . | . . . . . . Relay Couplers Released . | . . . . . . Fabnet Peak Effective % . | . . . . . . Robots Rewired . | . . . . . . Allies Hacked . | . . . . . . Hacks Repelled . | . . . . . . Allies | -11 -10 -10 -10 -9 -8 -------- Run | Yrd Mat Min Exi Min Mat Total Allies . | . . . . . . Largest Group . | . . . . . . Highest-Rated Group . | . . . . . . Highest-Rated Ally . | . . . . . . Total Orders . | . . . . . . Ally Attacks . | . . . . . . Total Damage . | . . . . . . Kills . | . . . . . . Allies Corrupted . | . . . . . . Allies Melted . | . . . . . . Intel | -11 -10 -10 -10 -9 -8 ------- Run | Yrd Mat Min Exi Min Mat Robot Analysis Total . | . . . . . . Derelict Logs Recovered . | . . . . . . Drone Launches . | . . . . . . Drone Recoveries . | . . . . . . Exploration | -11 -10 -10 -10 -9 -8 ------------- Run | Yrd Mat Min Exi Min Mat Turns Passed 2408 | 63 160 100 1428 238 419 Spaces Moved 741 | 42 92 63 370 132 42 Core 18 | 16 . . . . 2 Treads 566 | 26 92 63 370 15 . Legs 157 | . . . . 117 40 Wheels . | . . . . . . Hover . | . . . . . . Flight . | . . . . . . Fastest Speed 50 | 50 160 160 160 120 610 Average Speed 298 | 122 160 160 382 124 782 Slowest Speed 900 | 160 160 160 560 160 900 Overloaded Moves . | . . . . . . Propulsion Burnouts . | . . . . . . Robots Hopped . | . . . . . . Cave-ins Triggered . | . . . . . . Exploration Rate (%) 30 | 5 20 31 78 41 5 Regions Visited 5 Branch Regions 3 Pre-discovered Areas 1 | . . . 1 . . Known Exits Taken . | . . . . . . Unknown Exits Taken 5 | 1 1 1 1 1 . Scrap Searched . | . . . . . . Spaces Dug . | . . . . . . Terrain Destroyed 54 | . . . . 54 . Melee . | . . . . . . Projectile . | . . . . . . AOE 54 | . . . . 54 . Terrain Rammed . | . . . . . . Walls Destroyed . | . . . . . . Machines Disabled . | . . . . . . Actions | -11 -10 -10 -10 -9 -8 --------- Run | Yrd Mat Min Exi Min Mat Total 852 | 54 104 62 385 173 74 Wait 2 | . . . . . 2 Move 736 | 41 91 62 369 131 42 Hop . | . . . . . . Pick Up 23 | 7 4 . 5 5 2 Fast Attach . | . . . . . . Attach 16 | 5 2 . 4 1 4 Detach 3 | . . . 2 . 1 Swap 9 | . 3 . 1 5 . Drop 13 | 1 3 . 4 4 1 Fire 49 | . 1 . . 27 21 Melee . | . . . . . . Ram 1 | . . . . . 1 Kick . | . . . . . . Crush . | . . . . . . Escape Stasis . | . . . . . . Rewire . | . . . . . . Trap . | . . . . . . Miscellaneous . | . . . . . . Route ------- -11/Scrapyard -10/Materials -10/Mines -10/Exiles -9/Mines -8/Materials History --------- Turn | Location | Event 6 | -11/Scrapyard | Discovered new exit (range 16) 64 | -11/Scrapyard | Entered Materials 182 | -10/Materials | Discovered new exit (range 14) 187 | -10/Materials | Met 8R-AWN 224 | -10/Materials | Entered Mines 226 | -10/Mines | Followed 8R-AWN into the Mines 306 | -10/Mines | Build established: Mutant 317 | -10/Mines | Discovered new exit (range 5) 324 | -10/Mines | Entered Exiles 374 | -10/Exiles | Welcomed by 8R-AWN 403 | -10/Exiles | Met EX-HEX 487 | -10/Exiles | Met EX-DEC 730 | -10/Exiles | Visited The Gauntlet 822 | -10/Exiles | Build established: Hauler-Mutant 1373 | -10/Exiles | Learned location of Zion (-7) 1738 | -10/Exiles | Discovered new exit (range 11) 1752 | -10/Exiles | Entered Mines 1753 | -9/Mines | Assembled infested the area 1953 | -9/Mines | Discovered new exit (range 12) 1990 | -9/Mines | Entered Materials 1990 | -8/Materials | Evolved 4 slots: Power x1, Utility x2, Weapon x1 2358 | -8/Materials | Lost 4 parts (1p2n1w) 2402 | -8/Materials | Core integrity fell below 50% 2409 | -8/Materials | Self-destructed Last Messages --------------- Ion Engine destroyed. Aluminum Leg destroyed. Critical hit (Burn: +37). Electrolysis Chamber disabled. Critical hit (Burn: +37). Lgt. Assault Rifle destroyed. Aluminum Leg destroyed. Critical hit (Burn: +37). G-47 Trooper destroyed. Lgt. Assault Rifle destroyed. Adv. Weight Redist. System destroyed. Acquired Imp. Ion Engine. Slammed into G-47 Trooper. Acquired 55 matter. Critical hit (Burn: +37). Humpback destroyed. K-01 Serf cleans the Atomic Centrifuge. K-01 Serf collects debris. [A new version of Cogmind is available, see F1 News page.] Map ----- +----------------------------------------------------+ | ?????????????????????????????????????????????????? | | ?????????????????????????????????????????????????? | | ?????????????????????????????????????????????????? | | ?????????????????????????????????????????????????? | | ?????????????????????????????????????????????????? | | ?????????????????????????????????????????????????? | | ???????????????????????????#####?????????????????? | | ??????????????????????????? ?????????????????? | | ??????????????????????????? ??????????????????? | | ??????????????????????????? ??????????????????? | | ???????????????????????????? ??????????????????? | | ???????????????????????????? ??????????????????? | | ???????????????????????????? ??????????????????? | | ???????????????????????????? ??????????????????? | | ????????????????????????????# #??????????????????? | | ????????????????????????????# #??????????????????? | | ????????????????????????????# #??????????????????? | | ???????????????????????######+####???????????????? | | ???????????????????????# ####????????????? | | ???????????????????????# /! "" #????????????? | | ???????????????????????# ! """#????????????? | | ??????????????????????## !S"#????????????? | | ??????????????????????#!=g """ ####????????????? | | ???????????????????#####=%"" """ #???????????????? | | ???????????????????# +! ""k""" #???????????????? | | ???????????????????##### @g! #???????????????? | | ??????????????????############+##################? | | ??????????????? #? | | ??????????????? #? | | ??????????????? #? | | ????????????????#################################? | | ?????????????????????????????????????????????????? | | ?????????????????????????????????????????????????? | | ?????????????????????????????????????????????????? | | ?????????????????????????????????????????????????? | | ?????????????????????????????????????????????????? | | | | | | | | | | | | | | | | | | | | | | | | | | | | | +----------------------------------------------------+ Best States ------------- Heat Dissipation 31 Energy Generation 12 Energy Capacity 500 Matter Stores 500 Matter Capacity 500 Sight Range 16 Terrain Scan Density 10 Additional Mass Support 9 Resistance: KI 20 Resistance: TH 20 Resistance: EX 20 Resistance: EM 20 Resistance: I 20 Resistance: S 20 Resistance: P 20 Evasion (%) 55 Targeting Accuracy 5 Recoil Reduction 2 Offensive Hacking 10 Item Schematics ----------------- Adv. Weight Redist. System | -8/Materials | Scanalyzed Humpback | -8/Materials | Scanalyzed Robot Schematics ------------------ None Fabricated ------------ Nothing Alien Tech Used ----------------- None Achievements -------------- I Survived The Infestation Let's See Who's Tougher Librarian Tank Challenges ------------ None Game ------ Seed DefensePhasingBoregun Manual? 0 Play Time 00:13:29 Cumulative 1.1 hours Start 2024.04.27 @ 15:09:32 End 2024.04.27 @ 16:15:44 Sessions 3 Manual Loads 0 Difficulty Adventurer Special Mode None Game No. 4 Rogue 0 Adventurer 4 Explorer 0 Win Type - Total 0 Types 0/0/0/0/0/0/0/0/0 Lore% 6 Gallery% 5 Achievement% 8 Wizard Run 0 Options --------- Layout 1 ASCII 0 Keyboard 0 Movement Mouse Keybinds 0 Fullscreen 1 Font 24/Smallcaps Map View 50x35 Zoom Use 0% Tactical HUD 0 Map Filters NONE Filters NONE Steam 1 RUN: 4f10df63-9924-40d4-9023-bd918623428d